[Event "*** Titled Tuesday Blitz"]
[Site "Chess.com"]
[Date "2020.05.12"]
[Round "4"]
[White "DonBroca"]
[Black "Soltan49"]
[Result "0-1"]
[WhiteElo "2229"]
[BlackElo "2452"]
[TimeControl "180+1"]
[EndTime "10:39:42 PDT"]
[Termination "Soltan49 won by checkmate"]

1. e4 {[%clk 0:03:00.9]} 1... c6 {[%clk 0:02:56.3]} 2. d4 {[%clk 0:02:59]} 2...
d5 {[%clk 0:02:57]} 3. Nc3 {[%clk 0:02:57]} 3... dxe4 {[%clk 0:02:57.1]} 4. Nxe4
{[%clk 0:02:57.1]} 4... Nf6 {[%clk 0:02:56.8]} 5. Qd3 {[%clk 0:02:56.5]} 5...
Nbd7 {[%clk 0:02:52.7]} 6. Nf3 {[%clk 0:02:54.7]} 6... Nxe4 {[%clk 0:02:52.5]}
7. Qxe4 {[%clk 0:02:53.7]} 7... Nf6 {[%clk 0:02:53.4]} 8. Qe3 {[%clk 0:02:54.2]}
8... Bf5 {[%clk 0:02:52.7]} 9. Bd3 {[%clk 0:02:46]} 9... Bxd3 {[%clk 0:02:51.7]}
10. Qxd3 {[%clk 0:02:46.4]} 10... e6 {[%clk 0:02:52.6]} 11. Bf4 {[%clk
0:02:45.5]} 11... Bd6 {[%clk 0:02:51.3]} 12. Ne5 {[%clk 0:02:44]} 12... Bxe5
{[%clk 0:02:47.9]} 13. Bxe5 {[%clk 0:02:43.5]} 13... Qa5+ {[%clk 0:02:48.1]} 14.
Qd2 {[%clk 0:02:41.1]} 14... Qa6 {[%clk 0:02:44.2]} 15. Bxf6 {[%clk 0:02:35.1]}
15... gxf6 {[%clk 0:02:43.9]} 16. Qe2 {[%clk 0:02:35.1]} 16... Qa5+ {[%clk
0:02:39.1]} 17. c3 {[%clk 0:02:34.4]} 17... O-O-O {[%clk 0:02:38.6]} 18. O-O
{[%clk 0:02:34.2]} 18... h5 {[%clk 0:02:37]} 19. Qf3 {[%clk 0:02:33]} 19... f5
{[%clk 0:02:33]} 20. Rfe1 {[%clk 0:02:32.2]} 20... h4 {[%clk 0:02:30.8]} 21. Re5
{[%clk 0:02:26.5]} 21... Qb6 {[%clk 0:02:27.5]} 22. b4 {[%clk 0:02:19.6]} 22...
h3 {[%clk 0:02:23.8]} 23. g3 {[%clk 0:02:18.7]} 23... Rd5 {[%clk 0:02:18.4]} 24.
Qe2 {[%clk 0:02:09.2]} 24... Rhd8 {[%clk 0:02:12.6]} 25. a4 {[%clk 0:02:04.9]}
25... a5 {[%clk 0:02:09.3]} 26. Rb1 {[%clk 0:02:03.4]} 26... Kb8 {[%clk
0:01:55.3]} 27. Rb2 {[%clk 0:01:47.5]} 27... Ka7 {[%clk 0:01:51]} 28. Re3 {[%clk
0:01:28.8]} 28... f4 {[%clk 0:01:46.1]} 29. gxf4 {[%clk 0:01:24.7]} 29... Qc7
{[%clk 0:01:44.6]} 30. Rxh3 {[%clk 0:00:51.5]} 30... Qxf4 {[%clk 0:01:43]} 31.
Rg3 {[%clk 0:00:52]} 31... Rh8 {[%clk 0:01:36.9]} 32. bxa5 {[%clk 0:00:48.9]}
32... Rxa5 {[%clk 0:01:28.2]} 33. c4 {[%clk 0:00:25.7]} 33... Qc1+ {[%clk
0:01:14.7]} 34. Kg2 {[%clk 0:00:23.3]} 34... Rah5 {[%clk 0:01:14.7]} 35. h3
{[%clk 0:00:23.2]} 35... Qh6 {[%clk 0:00:52.5]} 36. Rgb3 {[%clk 0:00:20.6]}
36... Rg5+ {[%clk 0:00:47.6]} 37. Kf1 {[%clk 0:00:17.3]} 37... Rb8 {[%clk
0:00:42.9]} 38. Qe3 {[%clk 0:00:15.6]} 38... Ka8 {[%clk 0:00:28.5]} 39. d5
{[%clk 0:00:15.5]} 39... exd5 {[%clk 0:00:27.1]} 40. cxd5 {[%clk 0:00:15.3]}
40... Qg6 {[%clk 0:00:21]} 41. Qe7 {[%clk 0:00:08.9]} 41... Rg1+ {[%clk
0:00:18.2]} 42. Ke2 {[%clk 0:00:09.3]} 42... Qh5+ {[%clk 0:00:18.3]} 43. Kd3
{[%clk 0:00:09.2]} 43... Qxd5+ {[%clk 0:00:18.2]} 44. Ke3 {[%clk 0:00:07.6]}
44... Re1+ {[%clk 0:00:16.7]} 45. Re2 {[%clk 0:00:08.1]} 45... Rxe2+ {[%clk
0:00:16.5]} 46. Kxe2 {[%clk 0:00:08.2]} 46... Qxb3 {[%clk 0:00:17.4]} 47. Qc5
{[%clk 0:00:06.1]} 47... Re8+ {[%clk 0:00:17.1]} 48. Kf1 {[%clk 0:00:04.5]}
48... Qd1+ {[%clk 0:00:17.2]} 49. Kg2 {[%clk 0:00:04.7]} 49... Rg8+ {[%clk
0:00:17.6]} 50. Kh2 {[%clk 0:00:04.3]} 50... Qg1# {[%clk 0:00:17.5]} 0-1

[Event "*** Titled Tuesday Blitz"]
[Site "Chess.com"]
[Date "2020.05.12"]
[Round "4"]
[White "bugsbunny444"]
[Black "ketster"]
[Result "1-0"]
[WhiteElo "2454"]
[BlackElo "2280"]
[TimeControl "180+1"]
[EndTime "10:39:44 PDT"]
[Termination "bugsbunny444 won by checkmate"]

1. Nf3 {[%clk 0:03:00.9]} 1... Nf6 {[%clk 0:02:59.7]} 2. c4 {[%clk 0:02:59.7]}
2... e6 {[%clk 0:02:59.2]} 3. g3 {[%clk 0:03:00]} 3... d5 {[%clk 0:02:59]} 4.
Bg2 {[%clk 0:03:00.9]} 4... d4 {[%clk 0:02:58.7]} 5. b4 {[%clk 0:03:00.3]} 5...
Bxb4 {[%clk 0:02:52.8]} 6. Qa4+ {[%clk 0:02:58.9]} 6... Nc6 {[%clk 0:02:44.4]}
7. Ne5 {[%clk 0:02:59.5]} 7... Rb8 {[%clk 0:02:44.2]} 8. Nxc6 {[%clk 0:02:39.4]}
8... bxc6 {[%clk 0:02:43]} 9. Ba3 {[%clk 0:02:21.1]} 9... Bxa3 {[%clk
0:02:37.2]} 10. Bxc6+ {[%clk 0:02:13.2]} 10... Bd7 {[%clk 0:02:31]} 11. Nxa3
{[%clk 0:01:51.8]} 11... O-O {[%clk 0:02:27.1]} 12. O-O {[%clk 0:01:44.5]} 12...
Bxc6 {[%clk 0:02:11.6]} 13. Qxc6 {[%clk 0:01:44.6]} 13... Rb6 {[%clk 0:02:11.8]}
14. Qa4 {[%clk 0:01:34.1]} 14... e5 {[%clk 0:02:00.8]} 15. c5 {[%clk 0:01:30.2]}
15... Re6 {[%clk 0:01:57.3]} 16. Rab1 {[%clk 0:01:21.8]} 16... Ne4 {[%clk
0:01:54]} 17. Qc2 {[%clk 0:01:04.4]} 17... Qd5 {[%clk 0:01:39.2]} 18. f3 {[%clk
0:00:41.3]} 18... Nxc5 {[%clk 0:01:20.5]} 19. Rb5 {[%clk 0:00:41.2]} 19... Rc6
{[%clk 0:00:59.2]} 20. Rc1 {[%clk 0:00:41.2]} 20... d3 {[%clk 0:00:48.4]} 21.
Rxc5 {[%clk 0:00:34.5]} 21... Qd4+ {[%clk 0:00:13.5]} 22. e3 {[%clk 0:00:34.3]}
22... Qb4 {[%clk 0:00:13.5]} 23. Qc3 {[%clk 0:00:22.2]} 23... Rxc5 {[%clk
0:00:13.6]} 24. Qxb4 {[%clk 0:00:17.8]} 24... Rxc1+ {[%clk 0:00:13.1]} 25. Kf2
{[%clk 0:00:18.5]} 25... Rc6 {[%clk 0:00:09]} 26. e4 {[%clk 0:00:15.7]} 26...
Rd6 {[%clk 0:00:07.3]} 27. Nc4 {[%clk 0:00:13.5]} 27... Rd4 {[%clk 0:00:07.2]}
28. Qc5 {[%clk 0:00:08]} 28... f6 {[%clk 0:00:06.8]} 29. Ke3 {[%clk 0:00:06.9]}
29... Rfd8 {[%clk 0:00:06.1]} 30. Qxc7 {[%clk 0:00:05]} 30... R4d7 {[%clk
0:00:05]} 31. Qc5 {[%clk 0:00:04.2]} 31... h5 {[%clk 0:00:03.7]} 32. h4 {[%clk
0:00:03.9]} 32... Kh7 {[%clk 0:00:03.5]} 33. Nb2 {[%clk 0:00:03.2]} 33... Rb8
{[%clk 0:00:03.5]} 34. Nxd3 {[%clk 0:00:03.2]} 34... Rbd8 {[%clk 0:00:03.6]} 35.
Nb4 {[%clk 0:00:01.2]} 35... Rxd2 {[%clk 0:00:03.4]} 36. Qc3 {[%clk 0:00:01.6]}
36... R2d7 {[%clk 0:00:02.8]} 37. Nd5 {[%clk 0:00:02]} 37... Rb7 {[%clk
0:00:03]} 38. Qc6 {[%clk 0:00:01.9]} 38... Rdb8 {[%clk 0:00:03.2]} 39. g4 {[%clk
0:00:01.4]} 39... hxg4 {[%clk 0:00:02.7]} 40. fxg4 {[%clk 0:00:02.3]} 40... Rb2
{[%clk 0:00:02.4]} 41. Qc7 {[%clk 0:00:02.3]} 41... R8b7 {[%clk 0:00:02.7]} 42.
Nxf6+ {[%clk 0:00:02.2]} 42... Kg6 {[%clk 0:00:02.6]} 43. Qxe5 {[%clk
0:00:02.8]} 43... gxf6 {[%clk 0:00:03]} 44. Qh5+ {[%clk 0:00:03]} 44... Kg7
{[%clk 0:00:03.3]} 45. Kf4 {[%clk 0:00:03.5]} 45... Re2 {[%clk 0:00:02.5]} 46.
Qf5 {[%clk 0:00:03.5]} 46... Rbb2 {[%clk 0:00:01.7]} 47. Qd7+ {[%clk 0:00:03.2]}
47... Kg8 {[%clk 0:00:02]} 48. Kf5 {[%clk 0:00:03.6]} 48... Rf2+ {[%clk
0:00:01.9]} 49. Kg6 {[%clk 0:00:03.9]} 49... Rb8 {[%clk 0:00:01.6]} 50. Qg7#
{[%clk 0:00:03.8]} 1-0

[Event "*** Titled Tuesday Blitz"]
[Site "Chess.com"]
[Date "2020.05.12"]
[Round "4"]
[White "Raja3401"]
[Black "GianmarcoVaR"]
[Result "1-0"]
[WhiteElo "2780"]
[BlackElo "2560"]
[TimeControl "180+1"]
[EndTime "10:39:46 PDT"]
[Termination "Raja3401 won on time"]

1. e4 {[%clk 0:03:00.9]} 1... c6 {[%clk 0:02:58.8]} 2. Nf3 {[%clk 0:03:01.2]}
2... d5 {[%clk 0:02:58.7]} 3. Nc3 {[%clk 0:03:02.1]} 3... dxe4 {[%clk
0:02:58.3]} 4. Nxe4 {[%clk 0:03:03]} 4... Nf6 {[%clk 0:02:58.5]} 5. Qe2 {[%clk
0:03:03.3]} 5... Nxe4 {[%clk 0:02:57.8]} 6. Qxe4 {[%clk 0:03:04.2]} 6... Qd5
{[%clk 0:02:57.7]} 7. Qf4 {[%clk 0:03:04.5]} 7... Qf5 {[%clk 0:02:58.1]} 8. Qe3
{[%clk 0:03:04.9]} 8... Qe6 {[%clk 0:02:58.6]} 9. b3 {[%clk 0:03:04.7]} 9...
Qxe3+ {[%clk 0:02:56.8]} 10. fxe3 {[%clk 0:03:05.6]} 10... Bf5 {[%clk
0:02:56.9]} 11. Bb2 {[%clk 0:03:05.5]} 11... e6 {[%clk 0:02:55.4]} 12. O-O-O
{[%clk 0:03:04.8]} 12... a5 {[%clk 0:02:55.4]} 13. a4 {[%clk 0:03:03.7]} 13...
Na6 {[%clk 0:02:52.4]} 14. Nh4 {[%clk 0:02:31.6]} 14... Bg4 {[%clk 0:02:47.2]}
15. Re1 {[%clk 0:02:31.3]} 15... Be7 {[%clk 0:02:44.2]} 16. Nf3 {[%clk
0:02:31.3]} 16... O-O {[%clk 0:02:41.3]} 17. h3 {[%clk 0:02:30.8]} 17... Bf5
{[%clk 0:02:39]} 18. g4 {[%clk 0:02:30.1]} 18... Be4 {[%clk 0:02:27.9]} 19. Be2
{[%clk 0:02:30.3]} 19... Nb4 {[%clk 0:02:17]} 20. d3 {[%clk 0:02:28.4]} 20...
Bg6 {[%clk 0:02:15.4]} 21. h4 {[%clk 0:02:24.5]} 21... f6 {[%clk 0:02:08.9]} 22.
e4 {[%clk 0:02:16.1]} 22... c5 {[%clk 0:01:31.4]} 23. h5 {[%clk 0:02:12.6]}
23... Bf7 {[%clk 0:01:26.4]} 24. Reg1 {[%clk 0:02:08]} 24... h6 {[%clk
0:01:26.2]} 25. e5 {[%clk 0:02:02.8]} 25... Nd5 {[%clk 0:01:25.1]} 26. exf6
{[%clk 0:01:58.7]} 26... gxf6 {[%clk 0:01:25.5]} 27. d4 {[%clk 0:01:48]} 27...
cxd4 {[%clk 0:01:18.5]} 28. Nxd4 {[%clk 0:01:46]} 28... Bc5 {[%clk 0:01:14.9]}
29. Rd1 {[%clk 0:01:10.3]} 29... Rac8 {[%clk 0:01:12.5]} 30. Bc4 {[%clk
0:00:59.8]} 30... Ne3 {[%clk 0:01:02.8]} 31. Bxe6 {[%clk 0:00:59.5]} 31... Bxd4
{[%clk 0:01:02.7]} 32. Bxf7+ {[%clk 0:00:54.1]} 32... Rxf7 {[%clk 0:01:01.7]}
33. Rxd4 {[%clk 0:00:54.7]} 33... Nxc2 {[%clk 0:00:56.7]} 34. Rf4 {[%clk
0:00:47.9]} 34... Na3+ {[%clk 0:00:35.6]} 35. Kd1 {[%clk 0:00:44.8]} 35... Rd7+
{[%clk 0:00:33.8]} 36. Ke1 {[%clk 0:00:45.2]} 36... Re8+ {[%clk 0:00:24.3]} 37.
Kf1 {[%clk 0:00:41.3]} 37... Rd1+ {[%clk 0:00:24.4]} 38. Kg2 {[%clk 0:00:39.5]}
38... Rd2+ {[%clk 0:00:23.9]} 39. Kh3 {[%clk 0:00:32.8]} 39... Rxb2 {[%clk
0:00:24.1]} 40. Rxf6 {[%clk 0:00:33.3]} 40... Rxb3+ {[%clk 0:00:24.1]} 41. Kh4
{[%clk 0:00:33.6]} 41... Kg7 {[%clk 0:00:08.7]} 42. Rg6+ {[%clk 0:00:32.1]}
42... Kh7 {[%clk 0:00:09]} 43. Rf1 {[%clk 0:00:32.6]} 43... Re7 {[%clk 0:00:05]}
44. Rff6 {[%clk 0:00:31.1]} 44... Rg7 {[%clk 0:00:03.2]} 45. Rxh6+ {[%clk
0:00:29.3]} 45... Kg8 {[%clk 0:00:03.8]} 46. Rd6 {[%clk 0:00:22]} 46... Rb4
{[%clk 0:00:01.7]} 47. Rd8+ {[%clk 0:00:22.2]} 47... Kf7 {[%clk 0:00:01.9]} 48.
Rd7+ {[%clk 0:00:22.4]} 48... Kg8 {[%clk 0:00:01.7]} 49. Rxg7+ {[%clk
0:00:13.3]} 49... Kxg7 {[%clk 0:00:01.9]} 50. Rg6+ {[%clk 0:00:13.9]} 50... Kh7
{[%clk 0:00:02.3]} 51. Rd6 {[%clk 0:00:13.6]} 51... Nc4 {[%clk 0:00:01.8]} 52.
Rd7+ {[%clk 0:00:12.9]} 52... Kg8 {[%clk 0:00:01.8]} 53. Rd8+ {[%clk 0:00:10.4]}
53... Kf7 {[%clk 0:00:01.3]} 54. Rd7+ {[%clk 0:00:10.7]} 54... Ke6 {[%clk
0:00:01.5]} 55. Rg7 {[%clk 0:00:10.5]} 55... Ne5 {[%clk 0:00:01.8]} 56. h6
{[%clk 0:00:11]} 1-0

[Event "*** Titled Tuesday Blitz"]
[Site "Chess.com"]
[Date "2020.05.12"]
[Round "4"]
[White "Micki-taryan"]
[Black "Fy_Rakotomaharo"]
[Result "1-0"]
[WhiteElo "3060"]
[BlackElo "2644"]
[TimeControl "180+1"]
[EndTime "10:39:50 PDT"]
[Termination "Micki-taryan won by resignation"]

1. d4 {[%clk 0:03:00.9]} 1... Nf6 {[%clk 0:02:59.1]} 2. Nf3 {[%clk 0:03:01.3]}
2... g6 {[%clk 0:02:59]} 3. Nc3 {[%clk 0:03:01.2]} 3... d5 {[%clk 0:02:58.8]} 4.
Bf4 {[%clk 0:03:01.5]} 4... Bg7 {[%clk 0:02:58.9]} 5. Nb5 {[%clk 0:03:02]} 5...
Na6 {[%clk 0:02:59.4]} 6. e3 {[%clk 0:03:02.5]} 6... O-O {[%clk 0:02:59.7]} 7.
Be2 {[%clk 0:03:02.6]} 7... c6 {[%clk 0:02:57.5]} 8. Nc3 {[%clk 0:03:02.8]} 8...
Nh5 {[%clk 0:02:49]} 9. Be5 {[%clk 0:03:02]} 9... Nc7 {[%clk 0:02:45]} 10. Bxg7
{[%clk 0:02:59.2]} 10... Kxg7 {[%clk 0:02:45.9]} 11. Ne5 {[%clk 0:02:58.9]}
11... Nf6 {[%clk 0:02:46]} 12. h4 {[%clk 0:02:58.5]} 12... h5 {[%clk 0:02:46.3]}
13. Qd2 {[%clk 0:02:55.3]} 13... Qd6 {[%clk 0:02:37.5]} 14. O-O-O {[%clk
0:02:54.9]} 14... b5 {[%clk 0:02:37.6]} 15. f3 {[%clk 0:02:54]} 15... a5 {[%clk
0:02:24.4]} 16. Rdg1 {[%clk 0:02:53.3]} 16... a4 {[%clk 0:02:24.1]} 17. Nb1
{[%clk 0:02:50.6]} 17... c5 {[%clk 0:02:17.8]} 18. g4 {[%clk 0:02:42.8]} 18...
b4 {[%clk 0:01:46.1]} 19. gxh5 {[%clk 0:02:33.2]} 19... Nxh5 {[%clk 0:01:44.8]}
20. f4 {[%clk 0:02:33.2]} 20... Rh8 {[%clk 0:01:42.2]} 21. Bxh5 {[%clk
0:02:11.3]} 21... Rxh5 {[%clk 0:01:41.1]} 22. Rg5 {[%clk 0:02:12.2]} 22... Rh6
{[%clk 0:01:31.2]} 23. Rhg1 {[%clk 0:02:09.4]} 23... Ne6 {[%clk 0:01:19.2]} 24.
R5g3 {[%clk 0:02:07.8]} 24... Nf8 {[%clk 0:01:16.9]} 25. a3 {[%clk 0:01:54]}
25... bxa3 {[%clk 0:01:11.6]} 26. Nxa3 {[%clk 0:01:54.9]} 26... Bf5 {[%clk
0:01:10.3]} 27. Rg5 {[%clk 0:01:50.9]} 27... Be4 {[%clk 0:01:05.4]} 28. h5
{[%clk 0:01:51.2]} 28... f6 {[%clk 0:01:00]} 29. Rxg6+ {[%clk 0:01:26.4]} 29...
Nxg6 {[%clk 0:00:53.3]} 30. Nxg6 {[%clk 0:01:26.8]} 30... Bxg6 {[%clk
0:00:51.6]} 31. f5 {[%clk 0:01:15.7]} 31... Rxh5 {[%clk 0:00:36.4]} 32. Rxg6+
{[%clk 0:01:16.2]} 32... Kf7 {[%clk 0:00:35.4]} 33. Qg2 {[%clk 0:01:16.6]} 33...
Rg5 {[%clk 0:00:34.3]} 34. Rxg5 {[%clk 0:01:14]} 34... fxg5 {[%clk 0:00:35.2]}
35. Nb5 {[%clk 0:01:14.9]} 35... Qd7 {[%clk 0:00:29.1]} 36. dxc5 {[%clk
0:01:15]} 36... Qxf5 {[%clk 0:00:22.1]} 37. Nd4 {[%clk 0:01:14]} 37... Qe5
{[%clk 0:00:17.1]} 38. Qf2+ {[%clk 0:01:05.9]} 38... Kg6 {[%clk 0:00:16.7]} 39.
c6 {[%clk 0:01:06.4]} 39... a3 {[%clk 0:00:16]} 40. bxa3 {[%clk 0:01:04.2]}
40... Rxa3 {[%clk 0:00:15.9]} 41. Kd2 {[%clk 0:00:57.4]} 41... g4 {[%clk
0:00:15]} 42. Nb3 {[%clk 0:00:52]} 42... Ra6 {[%clk 0:00:10.8]} 43. Qf8 {[%clk
0:00:48.7]} 43... Qh2+ {[%clk 0:00:08.4]} 44. Kd3 {[%clk 0:00:47.8]} 44... Qd6
{[%clk 0:00:06.5]} 45. Nd4 {[%clk 0:00:46.2]} 45... Ra3+ {[%clk 0:00:05.7]} 46.
Kd2 {[%clk 0:00:43.8]} 46... Qb4+ {[%clk 0:00:05.5]} 47. Ke2 {[%clk 0:00:44.4]}
47... Ra1 {[%clk 0:00:04.5]} 48. Qf5+ {[%clk 0:00:43]} 48... Kh6 {[%clk
0:00:04.9]} 49. Qf4+ {[%clk 0:00:42.3]} 49... Kh5 {[%clk 0:00:05.1]} 50. Qe5+
{[%clk 0:00:41.2]} 50... Kg6 {[%clk 0:00:05.1]} 51. Qe6+ {[%clk 0:00:40.6]}
51... Kh5 {[%clk 0:00:04.8]} 52. Qxd5+ {[%clk 0:00:40.4]} 52... Kg6 {[%clk
0:00:04.3]} 53. Qf5+ {[%clk 0:00:39.4]} 53... Kh6 {[%clk 0:00:03.6]} 54. Qe6+
{[%clk 0:00:37.5]} 54... Kg5 {[%clk 0:00:03.4]} 55. Qe5+ {[%clk 0:00:34.7]}
55... Kh6 {[%clk 0:00:03.5]} 56. Qe4 {[%clk 0:00:35.4]} 56... Qe1+ {[%clk
0:00:02.4]} 57. Kd3 {[%clk 0:00:35.3]} 57... Qd1+ {[%clk 0:00:02.8]} 58. Kc3
{[%clk 0:00:35.3]} 58... Ra3+ {[%clk 0:00:02.9]} 59. Kb4 {[%clk 0:00:35.9]}
59... Ra1 {[%clk 0:00:01.5]} 60. Qf4+ {[%clk 0:00:34.2]} 60... Kg6 {[%clk
0:00:01.5]} 61. Qf5+ {[%clk 0:00:34.4]} 61... Kh6 {[%clk 0:00:01.9]} 62. Qe6+
{[%clk 0:00:34.9]} 62... Kg5 {[%clk 0:00:02.6]} 63. Qxe7+ {[%clk 0:00:35.3]}
63... Kg6 {[%clk 0:00:03.5]} 64. Qd6+ {[%clk 0:00:33.9]} 64... Kg5 {[%clk
0:00:04.4]} 65. Ne6+ {[%clk 0:00:34.1]} 65... Kg6 {[%clk 0:00:05.3]} 66. Qxd1
{[%clk 0:00:34.3]} 66... Rxd1 {[%clk 0:00:05.5]} 67. c7 {[%clk 0:00:35.2]} 67...
Rb1+ {[%clk 0:00:05]} 68. Kc3 {[%clk 0:00:34.7]} 68... g3 {[%clk 0:00:05.9]} 69.
c8=Q {[%clk 0:00:34.7]} 1-0

[Event "*** Titled Tuesday Blitz"]
[Site "Chess.com"]
[Date "2020.05.12"]
[Round "4"]
[White "platy3"]
[Black "nabukatnezarr"]
[Result "0-1"]
[WhiteElo "2728"]
[BlackElo "2523"]
[TimeControl "180+1"]
[EndTime "10:39:50 PDT"]
[Termination "nabukatnezarr won by resignation"]

1. e4 {[%clk 0:03:00.9]} 1... e6 {[%clk 0:02:55]} 2. d4 {[%clk 0:03:00.7]} 2...
d5 {[%clk 0:02:55.4]} 3. Nc3 {[%clk 0:03:01.4]} 3... Nf6 {[%clk 0:02:54.6]} 4.
e5 {[%clk 0:03:01.9]} 4... Nfd7 {[%clk 0:02:55.2]} 5. f4 {[%clk 0:03:02.6]} 5...
c5 {[%clk 0:02:55.7]} 6. Nf3 {[%clk 0:03:03.3]} 6... Qb6 {[%clk 0:02:55.6]} 7.
Be3 {[%clk 0:02:26]} 7... a6 {[%clk 0:02:55.3]} 8. Na4 {[%clk 0:02:13.7]} 8...
Qa5+ {[%clk 0:02:55.5]} 9. c3 {[%clk 0:02:14.1]} 9... cxd4 {[%clk 0:02:56.2]}
10. b4 {[%clk 0:02:11.4]} 10... Qc7 {[%clk 0:02:56.2]} 11. Bxd4 {[%clk
0:02:07.6]} 11... Nc6 {[%clk 0:02:53.5]} 12. Be3 {[%clk 0:02:05.2]} 12... Be7
{[%clk 0:02:44.1]} 13. Be2 {[%clk 0:02:03.7]} 13... b5 {[%clk 0:02:38.3]} 14.
Nb2 {[%clk 0:02:03.1]} 14... a5 {[%clk 0:02:38.7]} 15. a3 {[%clk 0:01:58.4]}
15... O-O {[%clk 0:02:35.3]} 16. O-O {[%clk 0:01:56.9]} 16... f6 {[%clk
0:02:35.4]} 17. Nd4 {[%clk 0:01:44.5]} 17... Nxd4 {[%clk 0:02:29.9]} 18. cxd4
{[%clk 0:01:44.6]} 18... fxe5 {[%clk 0:02:10.3]} 19. fxe5 {[%clk 0:01:37.1]}
19... axb4 {[%clk 0:02:00.5]} 20. axb4 {[%clk 0:01:33.2]} 20... Rxf1+ {[%clk
0:01:55.4]} 21. Bxf1 {[%clk 0:01:27.8]} 21... Rxa1 {[%clk 0:01:56.3]} 22. Qxa1
{[%clk 0:01:27.8]} 22... Bxb4 {[%clk 0:01:44.3]} 23. Bxb5 {[%clk 0:01:08.3]}
23... Nf8 {[%clk 0:01:19.9]} 24. Nd3 {[%clk 0:01:04.7]} 24... Qa5 {[%clk
0:01:04.7]} 25. Qxa5 {[%clk 0:00:56.1]} 25... Bxa5 {[%clk 0:01:05.6]} 26. Nc5
{[%clk 0:00:56.6]} 26... Kf7 {[%clk 0:00:56.6]} 27. h4 {[%clk 0:00:55.2]} 27...
h6 {[%clk 0:00:56.4]} 28. h5 {[%clk 0:00:53.6]} 28... Ke7 {[%clk 0:00:56.2]} 29.
g4 {[%clk 0:00:49.8]} 29... Bc3 {[%clk 0:00:44.4]} 30. Kg2 {[%clk 0:00:46.4]}
30... Nd7 {[%clk 0:00:40.9]} 31. Na4 {[%clk 0:00:46.3]} 31... Ba1 {[%clk
0:00:37.9]} 32. Kf3 {[%clk 0:00:45]} 32... Nf8 {[%clk 0:00:31.3]} 33. Ke2 {[%clk
0:00:44.6]} 33... Bd7 {[%clk 0:00:25.7]} 34. Bxd7 {[%clk 0:00:42.6]} 34... Nxd7
{[%clk 0:00:26.6]} 35. Kd3 {[%clk 0:00:41.6]} 35... Nb8 {[%clk 0:00:27.1]} 36.
Nc5 {[%clk 0:00:29.9]} 36... Nc6 {[%clk 0:00:26.2]} 37. Nb3 {[%clk 0:00:30.5]}
37... Bb2 {[%clk 0:00:26.3]} 38. Kc2 {[%clk 0:00:30.7]} 38... Ba3 {[%clk
0:00:26.5]} 39. Bf2 {[%clk 0:00:31.3]} 39... Bb4 {[%clk 0:00:24.6]} 40. Kd3
{[%clk 0:00:31.4]} 40... Kf7 {[%clk 0:00:23.3]} 41. Bh4 {[%clk 0:00:30.4]} 41...
Na5 {[%clk 0:00:19.5]} 42. Nc1 {[%clk 0:00:23.1]} 42... Nc4 {[%clk 0:00:19.4]}
43. Ne2 {[%clk 0:00:23.5]} 43... Nb2+ {[%clk 0:00:18.1]} 44. Kc2 {[%clk
0:00:23.5]} 44... Nc4 {[%clk 0:00:18.5]} 45. Bf2 {[%clk 0:00:21.7]} 45... Bd2
{[%clk 0:00:17.5]} 46. Kd3 {[%clk 0:00:21]} 46... Bg5 {[%clk 0:00:17.7]} 47. Be1
{[%clk 0:00:20.5]} 47... Ne3 {[%clk 0:00:16.1]} 48. Ng1 {[%clk 0:00:14.9]} 48...
Nxg4 {[%clk 0:00:16.4]} 49. Nf3 {[%clk 0:00:15.6]} 49... Bf4 {[%clk 0:00:16.7]}
50. Ke2 {[%clk 0:00:13.7]} 50... Nh2 {[%clk 0:00:16.5]} 51. Nh4 {[%clk
0:00:11.5]} 51... Ng4 {[%clk 0:00:15.7]} 52. Kf3 {[%clk 0:00:10.9]} 52... Be3
{[%clk 0:00:12.6]} 53. Bc3 {[%clk 0:00:06.3]} 53... Nxe5+ {[%clk 0:00:12.4]} 54.
Kxe3 {[%clk 0:00:05.2]} 54... Ng4+ {[%clk 0:00:11.2]} 55. Kf4 {[%clk 0:00:05.6]}
55... Nf6 {[%clk 0:00:12.1]} 56. Ke5 {[%clk 0:00:03.7]} 56... Nxh5 {[%clk
0:00:12]} 57. Kd6 {[%clk 0:00:04.4]} 57... Nf6 {[%clk 0:00:11.1]} 58. Nf3 {[%clk
0:00:04.3]} 58... Ne4+ {[%clk 0:00:11.3]} 59. Kd7 {[%clk 0:00:02.9]} 59... Nxc3
{[%clk 0:00:12.2]} 60. Ne5+ {[%clk 0:00:02.9]} 60... Kf6 {[%clk 0:00:12.8]} 0-1